[Event "Titled Tuesday Blitz August 16 Early 2022"]
[White "Broca Jimenez, Fernando"]
[Black "Melikhov, Evgeny V."]
[WhiteFideId "5104742"]
[BlackFideId "4122046"]
[WhiteElo "2062"]
[BlackElo "1963"]
[Result "0-1"]
[Round "03"]
[TimeControl "180+2"]
[Date "2022.08.18"]
[WhiteClock "0:00:00"]
[BlackClock "0:00:00"]

1. e4 {[%clk 0:00:00]}  c5 {[%clk 0:00:00]} 2. Nf3 {[%clk 0:00:00]}  d6 {[%clk 0:00:00]} 3. d4 {[%clk 0:00:00]}  cxd4 {[%clk 0:00:00]} 4. Nxd4 {[%clk 0:00:00]}  Nf6 {[%clk 0:00:00]} 5. Nc3 {[%clk 0:00:00]}  a6 {[%clk 0:00:00]} 6. Be3 {[%clk 0:00:00]}  e5 {[%clk 0:00:00]} 7. Nb3 {[%clk 0:00:00]}  Be6 {[%clk 0:00:00]} 8. f3 {[%clk 0:00:00]}  Be7 {[%clk 0:00:00]} 9. Qd2 {[%clk 0:00:00]}  O-O {[%clk 0:00:00]} 10. g4 {[%clk 0:00:00]}  Nbd7 {[%clk 0:00:00]} 11. g5 {[%clk 0:00:00]}  Nh5 {[%clk 0:00:00]} 12. O-O-O {[%clk 0:00:00]}  b5 {[%clk 0:00:00]} 13. h4 {[%clk 0:00:00]}  Nb6 {[%clk 0:00:00]} 14. Nd5 {[%clk 0:00:00]}  Bxd5 {[%clk 0:00:00]} 15. exd5 {[%clk 0:00:00]}  Ng3 {[%clk 0:00:00]} 16. Rg1 {[%clk 0:00:00]}  Nxf1 {[%clk 0:00:00]} 17. Rdxf1 {[%clk 0:00:00]}  Nc4 {[%clk 0:00:00]} 18. Qc3 {[%clk 0:00:00]}  Nxe3 {[%clk 0:00:00]} 19. Qxe3 {[%clk 0:00:00]}  a5 {[%clk 0:00:00]} 20. Kb1 {[%clk 0:00:00]}  a4 {[%clk 0:00:00]} 21. Nd2 {[%clk 0:00:00]}  b4 {[%clk 0:00:00]} 22. Ne4 {[%clk 0:00:00]}  b3 {[%clk 0:00:00]} 23. cxb3 {[%clk 0:00:00]}  axb3 {[%clk 0:00:00]} 24. Qxb3 {[%clk 0:00:00]}  Qa5 {[%clk 0:00:00]} 25. Rc1 {[%clk 0:00:00]}  Rfb8 {[%clk 0:00:00]} 26. Qc4 {[%clk 0:00:00]}  Rb4 {[%clk 0:00:00]} 27. Qc8+ {[%clk 0:00:00]}  Rxc8 {[%clk 0:00:00]} 28. Rxc8+ {[%clk 0:00:00]}  Bd8 {[%clk 0:00:00]} 29. Nxd6 {[%clk 0:00:00]}  Kf8 {[%clk 0:00:00]} 30. Rgc1 {[%clk 0:00:00]}  Ke7 {[%clk 0:00:00]} 31. Nf5+ {[%clk 0:00:00]}  Kd7 {[%clk 0:00:00]} 32. R8c6 {[%clk 0:00:00]}  Qxd5 {[%clk 0:00:00]} 0-1


[Site "https://www.chess.com"]

[Event "Titled Tuesday Blitz August 16 Early 2022"]
[White "Brodowski, Piotr"]
[Black "Mika, Tomasz"]
[WhiteFideId "1124480"]
[BlackFideId "1132970"]
[WhiteElo "2312"]
[BlackElo "2126"]
[Result "1-0"]
[Round "03"]
[TimeControl "180+2"]
[Date "2022.08.18"]
[WhiteClock "0:00:00"]
[BlackClock "0:00:00"]

1. c4 {[%clk 0:00:00]}  e6 {[%clk 0:00:00]} 2. e4 {[%clk 0:00:00]}  d5 {[%clk 0:00:00]} 3. exd5 {[%clk 0:00:00]}  exd5 {[%clk 0:00:00]} 4. d4 {[%clk 0:00:00]}  Bb4+ {[%clk 0:00:00]} 5. Nc3 {[%clk 0:00:00]}  Nf6 {[%clk 0:00:00]} 6. Bd3 {[%clk 0:00:00]}  dxc4 {[%clk 0:00:00]} 7. Bxc4 {[%clk 0:00:00]}  O-O {[%clk 0:00:00]} 8. Ne2 {[%clk 0:00:00]}  Nc6 {[%clk 0:00:00]} 9. O-O {[%clk 0:00:00]}  Bg4 {[%clk 0:00:00]} 10. f3 {[%clk 0:00:00]}  Bf5 {[%clk 0:00:00]} 11. Bg5 {[%clk 0:00:00]}  Be7 {[%clk 0:00:00]} 12. Ng3 {[%clk 0:00:00]}  Nxd4 {[%clk 0:00:00]} 13. Be3 {[%clk 0:00:00]}  c5 {[%clk 0:00:00]} 14. Bxd4 {[%clk 0:00:00]}  cxd4 {[%clk 0:00:00]} 15. Nxf5 {[%clk 0:00:00]}  dxc3 {[%clk 0:00:00]} 16. Qxd8 {[%clk 0:00:00]}  Bxd8 {[%clk 0:00:00]} 17. bxc3 {[%clk 0:00:00]}  Rc8 {[%clk 0:00:00]} 18. Bb3 {[%clk 0:00:00]}  Rxc3 {[%clk 0:00:00]} 19. Nd6 {[%clk 0:00:00]}  Bb6+ {[%clk 0:00:00]} 20. Kh1 {[%clk 0:00:00]}  Rc7 {[%clk 0:00:00]} 21. Rad1 {[%clk 0:00:00]}  g6 {[%clk 0:00:00]} 22. Rfe1 {[%clk 0:00:00]}  Kg7 {[%clk 0:00:00]} 23. g4 {[%clk 0:00:00]}  h6 {[%clk 0:00:00]} 24. Kg2 {[%clk 0:00:00]}  Bc5 {[%clk 0:00:00]} 25. h4 {[%clk 0:00:00]}  Rd7 {[%clk 0:00:00]} 26. Ne8+ {[%clk 0:00:00]}  Rxe8 {[%clk 0:00:00]} 27. Rxd7 {[%clk 0:00:00]}  Rxe1 {[%clk 0:00:00]} 28. Rxf7+ {[%clk 0:00:00]}  Kh8 {[%clk 0:00:00]} 29. Rxf6 {[%clk 0:00:00]}  g5 {[%clk 0:00:00]} 30. Rxh6+ {[%clk 0:00:00]}  Kg7 {[%clk 0:00:00]} 31. hxg5 {[%clk 0:00:00]}  Re2+ {[%clk 0:00:00]} 32. Kg3 {[%clk 0:00:00]}  Bf2+ {[%clk 0:00:00]} 33. Kf4 {[%clk 0:00:00]}  Bd4 {[%clk 0:00:00]} 34. Kf5 {[%clk 0:00:00]}  Re5+ {[%clk 0:00:00]} 35. Kf4 {[%clk 0:00:00]}  Re2 {[%clk 0:00:00]} 36. Re6 {[%clk 0:00:00]}  Rf2 {[%clk 0:00:00]} 37. Re7+ {[%clk 0:00:00]}  Kh8 {[%clk 0:00:00]} 38. g6 {[%clk 0:00:00]}  Bb6 {[%clk 0:00:00]} 39. Rh7# {[%clk 0:00:00]} 1-0


[Site "https://www.chess.com"]

[Event "Titled Tuesday Blitz August 16 Early 2022"]
[White "Brozyna, Mateusz"]
[Black "Bashirli, Nail"]
[WhiteFideId "21816140"]
[BlackFideId "13406809"]
[WhiteElo "2276"]
[BlackElo "2365"]
[Result "0-1"]
[Round "03"]
[TimeControl "180+2"]
[Date "2022.08.18"]
[WhiteClock "0:00:00"]
[BlackClock "0:00:00"]

1. e4 {[%clk 0:00:00]}  c5 {[%clk 0:00:00]} 2. Nf3 {[%clk 0:00:00]}  Nc6 {[%clk 0:00:00]} 3. Bb5 {[%clk 0:00:00]}  Qb6 {[%clk 0:00:00]} 4. Nc3 {[%clk 0:00:00]}  e6 {[%clk 0:00:00]} 5. O-O {[%clk 0:00:00]}  a6 {[%clk 0:00:00]} 6. Bxc6 {[%clk 0:00:00]}  Qxc6 {[%clk 0:00:00]} 7. d4 {[%clk 0:00:00]}  cxd4 {[%clk 0:00:00]} 8. Nxd4 {[%clk 0:00:00]}  Qc7 {[%clk 0:00:00]} 9. Re1 {[%clk 0:00:00]}  Bc5 {[%clk 0:00:00]} 10. Nd5 {[%clk 0:00:00]}  exd5 {[%clk 0:00:00]} 11. exd5+ {[%clk 0:00:00]}  Kf8 {[%clk 0:00:00]} 12. Nf5 {[%clk 0:00:00]}  d6 {[%clk 0:00:00]} 13. Qf3 {[%clk 0:00:00]}  Bxf5 {[%clk 0:00:00]} 14. Qxf5 {[%clk 0:00:00]}  Ne7 {[%clk 0:00:00]} 15. Qh5 {[%clk 0:00:00]}  Ng6 {[%clk 0:00:00]} 16. Bg5 {[%clk 0:00:00]}  h6 {[%clk 0:00:00]} 17. Bd2 {[%clk 0:00:00]}  Kg8 {[%clk 0:00:00]} 18. Re2 {[%clk 0:00:00]}  Kh7 {[%clk 0:00:00]} 19. Rae1 {[%clk 0:00:00]}  Bd4 {[%clk 0:00:00]} 20. c3 {[%clk 0:00:00]}  Bf6 {[%clk 0:00:00]} 21. f4 {[%clk 0:00:00]}  Qc4 {[%clk 0:00:00]} 22. f5 {[%clk 0:00:00]}  Ne5 {[%clk 0:00:00]} 23. Re4 {[%clk 0:00:00]}  Qxd5 {[%clk 0:00:00]} 24. Bf4 {[%clk 0:00:00]}  Rhe8 {[%clk 0:00:00]} 25. Rd4 {[%clk 0:00:00]}  Nf3+ {[%clk 0:00:00]} 26. Kf1 {[%clk 0:00:00]}  Rxe1+ {[%clk 0:00:00]} 0-1


[Site "https://www.chess.com"]

[Event "Titled Tuesday Blitz August 16 Early 2022"]
[White "Buscar, Michael"]
[Black "Lebedev, Artem S."]
[WhiteFideId "2603616"]
[BlackFideId "34272747"]
[WhiteElo "2010"]
[BlackElo "1699"]
[Result "1-0"]
[Round "03"]
[TimeControl "180+2"]
[Date "2022.08.18"]
[WhiteClock "0:00:00"]
[BlackClock "0:00:00"]

1. Nf3 {[%clk 0:00:00]}  d5 {[%clk 0:00:00]} 2. b3 {[%clk 0:00:00]}  Nf6 {[%clk 0:00:00]} 3. Bb2 {[%clk 0:00:00]}  e6 {[%clk 0:00:00]} 4. e3 {[%clk 0:00:00]}  Be7 {[%clk 0:00:00]} 5. c4 {[%clk 0:00:00]}  O-O {[%clk 0:00:00]} 6. cxd5 {[%clk 0:00:00]}  Nxd5 {[%clk 0:00:00]} 7. Be2 {[%clk 0:00:00]}  c5 {[%clk 0:00:00]} 8. O-O {[%clk 0:00:00]}  Nc6 {[%clk 0:00:00]} 9. d3 {[%clk 0:00:00]}  b6 {[%clk 0:00:00]} 10. a3 {[%clk 0:00:00]}  Bb7 {[%clk 0:00:00]} 11. Nbd2 {[%clk 0:00:00]}  Bf6 {[%clk 0:00:00]} 12. Qc2 {[%clk 0:00:00]}  Bxb2 {[%clk 0:00:00]} 13. Qxb2 {[%clk 0:00:00]}  Qf6 {[%clk 0:00:00]} 14. Qxf6 {[%clk 0:00:00]}  Nxf6 {[%clk 0:00:00]} 15. Rfc1 {[%clk 0:00:00]}  Rfd8 {[%clk 0:00:00]} 16. Rab1 {[%clk 0:00:00]}  Ba6 {[%clk 0:00:00]} 17. Rc3 {[%clk 0:00:00]}  Rd6 {[%clk 0:00:00]} 18. b4 {[%clk 0:00:00]}  cxb4 {[%clk 0:00:00]} 19. axb4 {[%clk 0:00:00]}  Bb5 {[%clk 0:00:00]} 20. Nc4 {[%clk 0:00:00]}  Bxc4 {[%clk 0:00:00]} 21. dxc4 {[%clk 0:00:00]}  Ne4 {[%clk 0:00:00]} 22. Ra3 {[%clk 0:00:00]}  Rad8 {[%clk 0:00:00]} 23. g3 {[%clk 0:00:00]}  Nd2 {[%clk 0:00:00]} 24. Rb2 {[%clk 0:00:00]}  Nxf3+ {[%clk 0:00:00]} 25. Bxf3 {[%clk 0:00:00]}  Ne5 {[%clk 0:00:00]} 26. Be2 {[%clk 0:00:00]}  Rd2 {[%clk 0:00:00]} 27. Rxd2 {[%clk 0:00:00]}  Rxd2 {[%clk 0:00:00]} 28. Rxa7 {[%clk 0:00:00]}  g6 {[%clk 0:00:00]} 29. Kf1 {[%clk 0:00:00]}  Rb2 {[%clk 0:00:00]} 30. b5 {[%clk 0:00:00]}  Rb1+ {[%clk 0:00:00]} 31. Kg2 {[%clk 0:00:00]}  Re1 {[%clk 0:00:00]} 32. Bf1 {[%clk 0:00:00]}  Rd1 {[%clk 0:00:00]} 33. Ra6 {[%clk 0:00:00]}  Nd7 {[%clk 0:00:00]} 34. h4 {[%clk 0:00:00]}  Rd6 {[%clk 0:00:00]} 35. Be2 {[%clk 0:00:00]}  Nc5 {[%clk 0:00:00]} 36. Bf3 {[%clk 0:00:00]}  Nxa6 {[%clk 0:00:00]} 37. bxa6 {[%clk 0:00:00]}  Rd7 {[%clk 0:00:00]} 38. Bb7 {[%clk 0:00:00]} 1-0


[Site "https://www.chess.com"]

[Event "Titled Tuesday Blitz August 16 Early 2022"]
[White "D`Arruda, Ricardo D."]
[Black "Tica, Sven"]
[WhiteFideId "100692"]
[BlackFideId "14526948"]
[WhiteElo "2271"]
[BlackElo "2350"]
[Result "0-1"]
[Round "03"]
[TimeControl "180+2"]
[Date "2022.08.18"]
[WhiteClock "0:00:00"]
[BlackClock "0:00:00"]

1. d4 {[%clk 0:00:00]}  g6 {[%clk 0:00:00]} 2. e4 {[%clk 0:00:00]}  Bg7 {[%clk 0:00:00]} 3. Nc3 {[%clk 0:00:00]}  a6 {[%clk 0:00:00]} 4. Nf3 {[%clk 0:00:00]}  b5 {[%clk 0:00:00]} 5. Bd3 {[%clk 0:00:00]}  Bb7 {[%clk 0:00:00]} 6. O-O {[%clk 0:00:00]}  d6 {[%clk 0:00:00]} 7. Qe2 {[%clk 0:00:00]}  Nd7 {[%clk 0:00:00]} 8. e5 {[%clk 0:00:00]}  e6 {[%clk 0:00:00]} 9. exd6 {[%clk 0:00:00]}  cxd6 {[%clk 0:00:00]} 10. d5 {[%clk 0:00:00]}  e5 {[%clk 0:00:00]} 11. a4 {[%clk 0:00:00]}  b4 {[%clk 0:00:00]} 12. Ne4 {[%clk 0:00:00]}  Ndf6 {[%clk 0:00:00]} 13. Bg5 {[%clk 0:00:00]}  h6 {[%clk 0:00:00]} 14. Bh4 {[%clk 0:00:00]}  g5 {[%clk 0:00:00]} 15. Bg3 {[%clk 0:00:00]}  Nxd5 {[%clk 0:00:00]} 16. Nxd6+ {[%clk 0:00:00]}  Qxd6 {[%clk 0:00:00]} 17. Nxe5 {[%clk 0:00:00]}  Qe6 {[%clk 0:00:00]} 18. Rfe1 {[%clk 0:00:00]}  Nge7 {[%clk 0:00:00]} 19. Qh5 {[%clk 0:00:00]}  O-O {[%clk 0:00:00]} 20. Rad1 {[%clk 0:00:00]}  Nf6 {[%clk 0:00:00]} 21. Qe2 {[%clk 0:00:00]}  Nf5 {[%clk 0:00:00]} 22. Bc4 {[%clk 0:00:00]}  Nxg3 {[%clk 0:00:00]} 23. hxg3 {[%clk 0:00:00]}  Bd5 {[%clk 0:00:00]} 24. Rxd5 {[%clk 0:00:00]}  Nxd5 {[%clk 0:00:00]} 25. Qf3 {[%clk 0:00:00]}  Rad8 {[%clk 0:00:00]} 26. Nd3 {[%clk 0:00:00]}  Qd6 {[%clk 0:00:00]} 27. Rd1 {[%clk 0:00:00]}  Nb6 {[%clk 0:00:00]} 28. Bb3 {[%clk 0:00:00]}  a5 {[%clk 0:00:00]} 0-1


[Site "https://www.chess.com"]

[Event "Titled Tuesday Blitz August 16 Early 2022"]
[White "Daianu, Cristian-Clement"]
[Black "Quispe Santacruz, Javier"]
[WhiteFideId "1208926"]
[BlackFideId "3800920"]
[WhiteElo "2127"]
[BlackElo "1929"]
[Result "1-0"]
[Round "03"]
[TimeControl "180+2"]
[Date "2022.08.18"]
[WhiteClock "0:00:00"]
[BlackClock "0:00:00"]

1. c4 {[%clk 0:00:00]}  c6 {[%clk 0:00:00]} 2. Nf3 {[%clk 0:00:00]}  Nf6 {[%clk 0:00:00]} 3. d4 {[%clk 0:00:00]}  d5 {[%clk 0:00:00]} 4. Bf4 {[%clk 0:00:00]}  dxc4 {[%clk 0:00:00]} 5. e3 {[%clk 0:00:00]}  b5 {[%clk 0:00:00]} 6. a4 {[%clk 0:00:00]}  Bf5 {[%clk 0:00:00]} 7. Nc3 {[%clk 0:00:00]}  b4 {[%clk 0:00:00]} 8. Na2 {[%clk 0:00:00]}  a5 {[%clk 0:00:00]} 9. Bxc4 {[%clk 0:00:00]}  e6 {[%clk 0:00:00]} 10. O-O {[%clk 0:00:00]}  Nbd7 {[%clk 0:00:00]} 11. h3 {[%clk 0:00:00]}  Be7 {[%clk 0:00:00]} 12. Rc1 {[%clk 0:00:00]}  O-O {[%clk 0:00:00]} 13. Bd3 {[%clk 0:00:00]}  Bxd3 {[%clk 0:00:00]} 14. Qxd3 {[%clk 0:00:00]}  c5 {[%clk 0:00:00]} 15. Rc4 {[%clk 0:00:00]}  Rc8 {[%clk 0:00:00]} 16. Rfc1 {[%clk 0:00:00]}  Qb6 {[%clk 0:00:00]} 17. Ne5 {[%clk 0:00:00]}  Nxe5 {[%clk 0:00:00]} 18. Bxe5 {[%clk 0:00:00]}  Nd7 {[%clk 0:00:00]} 19. Bg3 {[%clk 0:00:00]}  Rfd8 {[%clk 0:00:00]} 20. b3 {[%clk 0:00:00]}  h6 {[%clk 0:00:00]} 21. Qc2 {[%clk 0:00:00]}  Rc6 {[%clk 0:00:00]} 22. Rd1 {[%clk 0:00:00]}  Rdc8 {[%clk 0:00:00]} 23. d5 {[%clk 0:00:00]}  exd5 {[%clk 0:00:00]} 24. Rxd5 {[%clk 0:00:00]}  Nf6 {[%clk 0:00:00]} 25. Rd1 {[%clk 0:00:00]}  Rd8 {[%clk 0:00:00]} 26. Nc1 {[%clk 0:00:00]}  Rxd1+ {[%clk 0:00:00]} 27. Qxd1 {[%clk 0:00:00]}  Re6 {[%clk 0:00:00]} 28. Nd3 {[%clk 0:00:00]}  Ne4 {[%clk 0:00:00]} 29. Nf4 {[%clk 0:00:00]}  Nxg3 {[%clk 0:00:00]} 30. Nxe6 {[%clk 0:00:00]}  Qxe6 {[%clk 0:00:00]} 31. fxg3 {[%clk 0:00:00]}  Qxe3+ {[%clk 0:00:00]} 32. Kh2 {[%clk 0:00:00]}  Bf6 {[%clk 0:00:00]} 33. Qg4 {[%clk 0:00:00]}  Bd4 {[%clk 0:00:00]} 34. Qc8+ {[%clk 0:00:00]}  Kh7 {[%clk 0:00:00]} 35. Qf5+ {[%clk 0:00:00]}  Kg8 {[%clk 0:00:00]} 36. Qb1 {[%clk 0:00:00]}  Be5 {[%clk 0:00:00]} 37. Qg1 {[%clk 0:00:00]}  Bxg3+ {[%clk 0:00:00]} 38. Kh1 {[%clk 0:00:00]}  Qxg1+ {[%clk 0:00:00]} 39. Kxg1 {[%clk 0:00:00]}  Bd6 {[%clk 0:00:00]} 40. Kf2 {[%clk 0:00:00]}  f5 {[%clk 0:00:00]} 41. Kf3 {[%clk 0:00:00]}  Kf7 {[%clk 0:00:00]} 42. g4 {[%clk 0:00:00]}  Kf6 {[%clk 0:00:00]} 43. gxf5 {[%clk 0:00:00]}  Kxf5 {[%clk 0:00:00]} 44. Rc2 {[%clk 0:00:00]}  g5 {[%clk 0:00:00]} 45. Rd2 {[%clk 0:00:00]}  Ke6 {[%clk 0:00:00]} 46. Ke4 {[%clk 0:00:00]}  h5 {[%clk 0:00:00]} 47. Kd3 {[%clk 0:00:00]}  g4 {[%clk 0:00:00]} 48. hxg4 {[%clk 0:00:00]}  hxg4 {[%clk 0:00:00]} 49. Kc4 {[%clk 0:00:00]}  g3 {[%clk 0:00:00]} 50. Kb5 {[%clk 0:00:00]}  Be7 {[%clk 0:00:00]} 51. Kxa5 {[%clk 0:00:00]}  Kf5 {[%clk 0:00:00]} 52. Kb5 {[%clk 0:00:00]}  Kf4 {[%clk 0:00:00]} 53. a5 {[%clk 0:00:00]}  Ke3 {[%clk 0:00:00]} 54. Rc2 {[%clk 0:00:00]}  Kd3 {[%clk 0:00:00]} 55. Rg2 {[%clk 0:00:00]}  Bd6 {[%clk 0:00:00]} 56. a6 {[%clk 0:00:00]}  Bb8 {[%clk 0:00:00]} 57. Rxg3+ {[%clk 0:00:00]}  Kc2 {[%clk 0:00:00]} 58. Rh3 {[%clk 0:00:00]}  c4 {[%clk 0:00:00]} 59. Kxc4 {[%clk 0:00:00]}  Kb2 {[%clk 0:00:00]} 60. Kxb4 {[%clk 0:00:00]}  Ba7 {[%clk 0:00:00]} 61. Rh2+ {[%clk 0:00:00]}  Kc1 {[%clk 0:00:00]} 62. Rh7 {[%clk 0:00:00]} 1-0


[Site "https://www.chess.com"]

[Event "Titled Tuesday Blitz August 16 Early 2022"]
[White "Danielyan, Vahe"]
[Black "Timofeev, Artyom"]
[WhiteFideId "13304828"]
[BlackFideId "4140419"]
[WhiteElo "2421"]
[BlackElo "2578"]
[Result "0-1"]
[Round "03"]
[TimeControl "180+2"]
[Date "2022.08.18"]
[WhiteClock "0:00:00"]
[BlackClock "0:00:00"]

1. e4 {[%clk 0:00:00]}  c6 {[%clk 0:00:00]} 2. Nc3 {[%clk 0:00:00]}  d5 {[%clk 0:00:00]} 3. Nf3 {[%clk 0:00:00]}  dxe4 {[%clk 0:00:00]} 4. Nxe4 {[%clk 0:00:00]}  Nf6 {[%clk 0:00:00]} 5. Ng3 {[%clk 0:00:00]}  Bg4 {[%clk 0:00:00]} 6. Bc4 {[%clk 0:00:00]}  e6 {[%clk 0:00:00]} 7. h3 {[%clk 0:00:00]}  Bxf3 {[%clk 0:00:00]} 8. Qxf3 {[%clk 0:00:00]}  Nbd7 {[%clk 0:00:00]} 9. d4 {[%clk 0:00:00]}  Qb6 {[%clk 0:00:00]} 10. c3 {[%clk 0:00:00]}  Be7 {[%clk 0:00:00]} 11. O-O {[%clk 0:00:00]}  O-O {[%clk 0:00:00]} 12. Re1 {[%clk 0:00:00]}  Rfe8 {[%clk 0:00:00]} 13. Bb3 {[%clk 0:00:00]}  Bf8 {[%clk 0:00:00]} 14. Be3 {[%clk 0:00:00]}  Qc7 {[%clk 0:00:00]} 15. Rad1 {[%clk 0:00:00]}  a5 {[%clk 0:00:00]} 16. h4 {[%clk 0:00:00]}  a4 {[%clk 0:00:00]} 17. Bc2 {[%clk 0:00:00]}  a3 {[%clk 0:00:00]} 18. b3 {[%clk 0:00:00]}  c5 {[%clk 0:00:00]} 19. Bb1 {[%clk 0:00:00]}  b5 {[%clk 0:00:00]} 20. h5 {[%clk 0:00:00]}  h6 {[%clk 0:00:00]} 21. Ne4 {[%clk 0:00:00]}  Nxe4 {[%clk 0:00:00]} 22. Bxe4 {[%clk 0:00:00]}  Rac8 {[%clk 0:00:00]} 23. d5 {[%clk 0:00:00]}  Nf6 {[%clk 0:00:00]} 24. dxe6 {[%clk 0:00:00]}  Nxe4 {[%clk 0:00:00]} 25. Qxe4 {[%clk 0:00:00]}  Rxe6 {[%clk 0:00:00]} 26. Qg4 {[%clk 0:00:00]}  Rce8 {[%clk 0:00:00]} 27. Rd5 {[%clk 0:00:00]}  Qc6 {[%clk 0:00:00]} 28. Red1 {[%clk 0:00:00]}  c4 {[%clk 0:00:00]} 29. b4 {[%clk 0:00:00]}  Be7 {[%clk 0:00:00]} 30. Qf5 {[%clk 0:00:00]}  Bf6 {[%clk 0:00:00]} 31. Rxb5 {[%clk 0:00:00]}  Bxc3 {[%clk 0:00:00]} 32. Rc5 {[%clk 0:00:00]}  Qa4 {[%clk 0:00:00]} 33. Rc1 {[%clk 0:00:00]}  Bb2 {[%clk 0:00:00]} 34. R1xc4 {[%clk 0:00:00]}  Qd1+ {[%clk 0:00:00]} 35. Kh2 {[%clk 0:00:00]}  Be5+ {[%clk 0:00:00]} 36. g3 {[%clk 0:00:00]}  Bxg3+ {[%clk 0:00:00]} 37. Kg2 {[%clk 0:00:00]}  Rxe3 {[%clk 0:00:00]} 38. fxe3 {[%clk 0:00:00]}  Qe2+ {[%clk 0:00:00]} 39. Kh3 {[%clk 0:00:00]}  Bd6 {[%clk 0:00:00]} 40. Rc8 {[%clk 0:00:00]}  Qh2+ {[%clk 0:00:00]} 41. Kg4 {[%clk 0:00:00]}  Qg3# {[%clk 0:00:00]} 0-1


[Site "https://www.chess.com"]

[Event "Titled Tuesday Blitz August 16 Early 2022"]
[White "De La Colina, Nicolas"]
[Black "Kohler, Aran"]
[WhiteFideId "30946921"]
[BlackFideId "1002856"]
[WhiteElo "2046"]
[BlackElo "2060"]
[Result "1-0"]
[Round "03"]
[TimeControl "180+2"]
[Date "2022.08.18"]
[WhiteClock "0:00:00"]
[BlackClock "0:00:00"]

1. e4 {[%clk 0:00:00]}  c6 {[%clk 0:00:00]} 2. d4 {[%clk 0:00:00]}  d5 {[%clk 0:00:00]} 3. exd5 {[%clk 0:00:00]}  cxd5 {[%clk 0:00:00]} 4. Bd3 {[%clk 0:00:00]}  a6 {[%clk 0:00:00]} 5. c3 {[%clk 0:00:00]}  Nc6 {[%clk 0:00:00]} 6. Bf4 {[%clk 0:00:00]}  Nf6 {[%clk 0:00:00]} 7. Nd2 {[%clk 0:00:00]}  g6 {[%clk 0:00:00]} 8. Qc2 {[%clk 0:00:00]}  Bg7 {[%clk 0:00:00]} 9. h3 {[%clk 0:00:00]}  O-O {[%clk 0:00:00]} 10. Ngf3 {[%clk 0:00:00]}  b5 {[%clk 0:00:00]} 11. a3 {[%clk 0:00:00]}  Bb7 {[%clk 0:00:00]} 12. O-O {[%clk 0:00:00]}  Rc8 {[%clk 0:00:00]} 13. Qd1 {[%clk 0:00:00]}  e6 {[%clk 0:00:00]} 14. Re1 {[%clk 0:00:00]}  Nd7 {[%clk 0:00:00]} 15. Qe2 {[%clk 0:00:00]}  Re8 {[%clk 0:00:00]} 16. Ne5 {[%clk 0:00:00]}  Ndxe5 {[%clk 0:00:00]} 17. dxe5 {[%clk 0:00:00]}  Na5 {[%clk 0:00:00]} 18. Nf3 {[%clk 0:00:00]}  Nb3 {[%clk 0:00:00]} 19. Rad1 {[%clk 0:00:00]}  Qb6 {[%clk 0:00:00]} 20. Bc2 {[%clk 0:00:00]}  Nc5 {[%clk 0:00:00]} 21. Be3 {[%clk 0:00:00]}  Qc7 {[%clk 0:00:00]} 22. Bd4 {[%clk 0:00:00]}  Ne4 {[%clk 0:00:00]} 23. h4 {[%clk 0:00:00]}  h6 {[%clk 0:00:00]} 24. Qe3 {[%clk 0:00:00]}  Nc5 {[%clk 0:00:00]} 25. h5 {[%clk 0:00:00]}  g5 {[%clk 0:00:00]} 26. Nh2 {[%clk 0:00:00]}  Nd7 {[%clk 0:00:00]} 27. Ng4 {[%clk 0:00:00]}  Qd8 {[%clk 0:00:00]} 28. Qd3 {[%clk 0:00:00]}  Nf8 {[%clk 0:00:00]} 29. Re3 {[%clk 0:00:00]}  Rc4 {[%clk 0:00:00]} 30. Rf3 {[%clk 0:00:00]}  Re7 {[%clk 0:00:00]} 31. Nf6+ {[%clk 0:00:00]}  Bxf6 {[%clk 0:00:00]} 32. Rxf6 {[%clk 0:00:00]}  Kg7 {[%clk 0:00:00]} 33. f4 {[%clk 0:00:00]}  a5 {[%clk 0:00:00]} 34. fxg5 {[%clk 0:00:00]}  hxg5 {[%clk 0:00:00]} 35. Qe3 {[%clk 0:00:00]}  Nh7 {[%clk 0:00:00]} 36. Bxh7 {[%clk 0:00:00]}  Kxh7 {[%clk 0:00:00]} 37. Qxg5 {[%clk 0:00:00]}  Qg8 {[%clk 0:00:00]} 38. Rh6# {[%clk 0:00:00]} 1-0


[Site "https://www.chess.com"]